bitfinex/quotes_ETHUSD_20250705
["timestamp","ask_amount","ask_price","bid_price","bid_amount"]
[1751678309568,36.33909331,2512.9,2512.8,0.0535195]
[1751678309783,46.31409331,2512.9,2512.8,0.0535195]
[1751678309993,36.33909331,2512.9,2512.8,0.0535195]
[1751678310285,46.32609331,2512.9,2512.8,0.0535195]
[1751678310446,76.32609331,2512.9,2512.8,0.0535195]
[1751678315258,77.42257356,2512.9,2512.8,0.0535195]
[1751678315443,76.87193332,2512.9,2512.8,0.0535195]
[1751678317257,47.42193332,2512.9,2512.8,0.0535195]
[1751678317463,77.62962089,2512.9,2512.8,0.0535195]
[1751678318272,15.33784109,2512.6,2512.5,0.0047727]
[1751678318469,34.78815792,2512.4,2512.3,0.0535195]
[1751678318675,43.19709012,2512.4,2512.3,0.0535195]
[1751678319375,43.74129449,2512.4,2512.3,0.0535195]
[1751678319577,44.21642392,2512.4,2512.3,0.0535195]
[1751678319747,44.76642392,2512.4,2512.3,0.0535195]
[1751678320359,45.31706416,2512.4,2512.3,0.0535195]
[1751678321481,45.52034376,2512.4,2512.3,0.0535195]
[1751678321778,45.31706416,2512.4,2512.3,0.0535195]
[1751678322581,55.31706416,2512.4,2512.3,0.0535195]
[1751678323278,55.31706416,2512.4,2512.3,1e-08]
[1751678323663,47.27906416,2512.4,2512.3,1e-08]
[1751678323852,57.48010473,2512.4,2512.3,1e-08]
[1751678324867,57.48110473,2512.4,2512.3,1e-08]
[1751678326161,4.7472502,2511.9,2511.8,0.0435195]
[1751678326368,32.64836549,2511.9,2511.8,0.0435195]
[1751678328161,62.64836549,2511.9,2511.8,0.0435195]
[1751678328406,46.98936281,2511.9,2511.8,0.0435195]
[1751678328690,26.99536281,2511.9,2511.8,0.0435195]
[1751678329677,14.35034676,2511.9,2511.8,0.0435195]
[1751678329879,10.57269656,2511.9,2511.8,0.0435195]
[1751678330081,14.55374676,2511.9,2511.8,0.0435195]
[1751678330282,24.55374676,2511.9,2511.8,0.0435195]
[1751678330865,24.55254794,2511.9,2511.8,0.0435195]
[1751678332291,28.66076035,2511.9,2511.8,0.0435195]
[1751678333107,29.02896569,2511.9,2511.8,0.0435195]
[1751678333597,28.66076035,2511.9,2511.8,0.0435195]
[1751678334399,24.1884502,2511.9,2511.8,0.0435195]
[1751678334987,20.2074,2511.9,2511.8,0.0435195]
[1751678335304,20.009,2511.9,2511.8,0.0435195]
[1751678335512,20.37768769,2511.9,2511.8,0.0435195]
[1751678336688,20.011,2511.9,2511.8,0.0435195]
[1751678337209,26.41108054,2511.9,2511.8,0.0435195]
[1751678337411,23.9920502,2511.9,2511.8,0.0435195]
[1751678338915,24.36172764,2511.9,2511.8,0.0435195]
[1751678340003,24.56012764,2511.9,2511.8,0.0435195]
[1751678341518,24.56612764,2511.9,2511.8,0.0435195]
[1751678342713,10.36967744,2511.9,2511.8,0.0435195]
[1751678342919,20.38567744,2511.9,2511.8,0.0435195]
[1751678343092,12.33067744,2511.9,2511.8,0.0435195]
[1751678343293,10.36967744,2511.9,2511.8,0.0435195]
[1751678343489,0.36967744,2511.9,2511.8,0.0435195]
[1751678343792,2.33156881,2511.9,2511.8,4.02472819]
[1751678344201,2.33156881,2511.9,2511.8,0.0435195]
[1751678345691,2.33156881,2511.9,2511.8,0.0445195]
[1751678349804,1.961,2511.9,2511.8,0.0445195]
[1751678350127,2.33206019,2511.9,2511.8,4.02572819]
[1751678350304,2.3320212,2511.9,2511.8,0.0445195]
[1751678350504,0.3710212,2511.9,2511.8,4.52928749]
[1751678350830,0.3710212,2511.9,2511.8,5.54678749]
[1751678351711,0.3710212,2511.9,2511.8,5.58659957]
[1751678352304,0.3710212,2511.9,2511.8,5.54678749]
[1751678352832,1.961,2512.0,2511.9,3.9810502]
[1751678353033,2.33183493,2512.0,2511.9,5.33196991]
[1751678353235,2.33183493,2512.0,2511.9,6.15106991]
[1751678354434,0.37083493,2512.0,2511.9,6.15106991]
[1751678354728,2.33183493,2512.0,2511.9,6.15106991]
[1751678354941,0.37083493,2512.0,2511.9,6.15106991]
[1751678358938,1.961,2512.3,2512.2,4.76637479]
[1751678359135,2.33174041,2512.3,2512.2,4.96477479]
[1751678364336,0.37074041,2512.3,2512.2,4.96477479]
[1751678364512,2.33174041,2512.3,2512.2,0.9842]
[1751678364712,2.33174041,2512.3,2512.2,4.17897479]
[1751678365326,2.33174041,2512.3,2512.2,0.1984]
[1751678365639,2.33174041,2512.3,2512.2,4.17897479]
[1751678366239,2.33174041,2512.3,2512.1,3.98065463]
[1751678366440,0.37074041,2512.2,2512.1,4.17905463]
[1751678366643,0.37074041,2512.2,2512.1,0.1984]
[1751678366844,0.60411445,2512.2,2512.1,0.1984]
[1751678367045,5.54288924,2512.2,2511.8,0.2429195]
[1751678367342,0.37074041,2512.1,2511.8,0.2429195]
[1751678367648,0.37074041,2512.0,2511.8,0.2429195]
[1751678367841,0.37074041,2511.9,2511.8,0.2429195]
[1751678369957,2.33174041,2511.9,2511.8,5.04622819]
[1751678370163,2.33174041,2511.9,2511.8,5.95296697]
[1751678370956,0.37074041,2511.9,2511.8,5.95296697]
[1751678371417,0.37074041,2511.9,2511.8,4.22412819]
[1751678373155,0.37074041,2511.9,2511.8,0.0445195]
[1751678373957,2.32874041,2511.9,2511.8,0.0445195]
[1751678374848,7.10589061,2511.9,2511.8,0.0445195]
[1751678376080,3.12484041,2511.9,2511.8,0.0445195]
[1751678376260,5.01404017,2511.9,2511.8,0.0445195]
[1751678376457,5.01448436,2511.9,2511.8,0.0445195]
[1751678376965,3.05648436,2511.9,2511.8,0.0445195]
[1751678377167,2.3301846,2511.9,2511.8,0.0445195]
[1751678377950,0.3711846,2511.9,2511.8,0.0445195]
[1751678378272,2.3301846,2511.9,2511.8,0.0445195]
[1751678378668,2.3301846,2511.9,2511.8,4.02572819]
[1751678379467,2.33019457,2511.9,2511.8,4.02572819]
[1751678381771,2.33019457,2511.9,2511.8,0.0445195]
[1751678382875,2.33019457,2511.9,2511.8,4.02572819]
[1751678383049,0.37119457,2511.9,2511.8,4.02572819]
[1751678383254,2.33019457,2511.9,2511.8,0.0445195]
[1751678383667,7.33590423,2511.9,2511.8,0.0445195]
[1751678383877,7.53430423,2511.9,2511.8,0.0445195]
[1751678384174,15.58630423,2511.9,2511.8,0.0445195]
[1751678385173,15.58615617,2511.9,2511.8,0.0445195]
[1751678388184,15.58600604,2511.9,2511.8,0.0445195]
[1751678395498,5.57500604,2511.9,2511.8,0.0445195]
[1751678395698,15.58500604,2511.9,2511.8,0.0445195]
[1751678399000,15.58502026,2511.9,2511.8,0.0445195]
[1751678399383,25.58502026,2511.9,2511.8,0.0445195]
[1751678401992,15.57502026,2511.9,2511.8,0.0445195]
[1751678402191,25.57802026,2511.9,2511.8,0.0445195]
[1751678402877,26.67450051,2511.9,2511.8,0.0445195]
[1751678404784,56.67450051,2511.9,2511.8,0.0445195]
[1751678405000,56.67450051,2511.9,2511.3,0.0435195]
[1751678405001,4.75144279,2511.4,2511.3,0.0435195]
[1751678405180,13.36875339,2511.4,2511.3,0.0435195]
[1751678405381,15.86449984,2511.4,2511.3,0.0435195]
[1751678406718,15.09489984,2511.4,2511.3,0.0435195]
[1751678406882,25.86449984,2511.4,2511.3,0.0435195]
[1751678407601,19.00489984,2511.4,2511.3,0.0435195]
[1751678407803,27.06789984,2511.4,2511.3,0.0435195]
[1751678408186,27.06889984,2511.4,2511.3,0.0435195]
[1751678408587,13.06505705,2511.4,2511.3,0.0435195]
[1751678408884,24.57415339,2511.4,2511.3,0.0435195]
[1751678412027,14.55115339,2511.4,2511.3,0.0435195]
[1751678412210,24.57315339,2511.4,2511.3,0.0435195]
[1751678413631,25.37565339,2511.4,2511.3,0.0435195]
[1751678415018,25.5834469,2511.4,2511.3,0.0435195]
[1751678415199,19.27866129,2511.4,2511.3,0.0435195]
[1751678415405,29.29866129,2511.4,2511.3,0.0435195]
[1751678417009,28.49516129,2511.4,2511.3,0.0435195]
[1751678428153,28.49516129,2511.4,2511.3,0.0305455]
[1751678433575,18.47616129,2511.4,2511.3,0.0305455]
[1751678433765,28.48916129,2511.4,2511.3,0.0305455]
[1751678438265,10.77710411,2511.4,2511.3,0.0305455]
[1751678438464,20.58870411,2511.4,2511.3,0.0305455]
[1751678439464,10.57870411,2511.4,2511.3,0.0305455]
[1751678439670,12.53870411,2511.4,2511.3,0.0305455]
[1751678443670,0.57870411,2511.4,2511.3,0.0305455]
[1751678443972,0.57870411,2511.4,2511.3,4.01254685]
[1751678443973,2.3309106,2511.4,2511.3,4.01254685]
[1751678444180,0.3709106,2511.4,2511.3,5.08870067]
[1751678444378,2.3309106,2511.4,2511.3,4.21094685]
[1751678445373,2.3309106,2511.4,2511.3,0.2289455]
[1751678446180,2.33081193,2511.4,2511.3,0.2289455]
[1751678447378,2.33081193,2511.4,2511.3,0.2299455]
[1751678447590,2.33281193,2511.4,2511.3,0.2299455]
[1751678448262,2.33281193,2511.4,2511.3,4.21194685]
[1751678449352,2.33281193,2511.4,2511.3,5.10964729]
[1751678454194,2.33281193,2511.4,2511.3,1.12764594]
[1751678454990,2.33240242,2511.4,2511.3,1.12764594]
[1751678456388,2.33240242,2511.4,2511.3,0.2299455]
[1751678457791,2.33246562,2511.4,2511.3,0.2299455]
[1751678459482,2.33248052,2511.4,2511.3,0.2299455]
[1751678462518,2.33248052,2511.4,2511.3,4.21194685]
[1751678471014,0.37248052,2511.4,2511.3,4.21194685]
[1751678471210,0.37248052,2511.4,2511.3,5.95275729]
[1751678472721,0.37248052,2511.4,2511.3,5.91293728]
[1751678473821,0.37248052,2511.4,2511.3,5.95275729]
[1751678474629,0.37248052,2511.4,2511.3,6.72035729]
[1751678475334,0.37248052,2511.4,2511.3,5.95275729]
[1751678475620,0.37248052,2511.4,2511.3,4.21194685]
[1751678481028,0.37248052,2511.4,2511.3,0.2299455]
[1751678488037,0.37248052,2511.4,2511.3,4.21194685]
[1751678488609,0.37248052,2511.4,2511.3,5.02804685]
[1751678493912,0.37248052,2511.4,2511.3,15.61786686]
[1751678494146,0.37248052,2511.4,2511.3,19.10326615]
[1751678495846,1e-08,2511.4,2511.3,19.10326615]
[1751678496047,1.952,2512.3,2512.2,3.98057479]
[1751678496413,1.952,2512.3,2512.2,4.17897479]
[1751678496947,1.952,2512.3,2512.2,5.79784475]
[1751678498134,0.002,2512.3,2512.2,5.79784475]
[1751678504823,0.002,2512.3,2512.2,5.74784475]
[1751678505554,0.002,2512.3,2512.2,7.09025049]
[1751678511856,0.002,2512.3,2512.2,7.05044475]
[1751678518078,0.002,2512.3,2512.2,7.09025049]
[1751678518485,0.002,2512.3,2512.2,7.05044475]
[1751678521188,0.37204219,2512.3,2512.2,7.05044475]
[1751678521376,0.37204219,2512.3,2512.2,4.17897479]
[1751678521987,1.19264219,2512.3,2512.2,0.1984]
[1751678522158,5.17305854,2512.3,2512.2,0.1984]
[1751678522363,5.17305854,2512.3,2511.9,0.1984]
[1751678522364,0.8206,2512.0,2511.9,0.1984]
[1751678522662,3.13964219,2512.0,2511.9,0.1984]
[1751678522871,3.13964219,2512.0,2511.6,0.1984]
[1751678522872,0.8206,2511.8,2511.6,0.1984]
[1751678523070,0.8206,2511.6,2511.4,0.1984]
[1751678523277,0.37004219,2511.5,2511.4,0.1984]
[1751678523885,0.37004219,2511.5,2511.4,4.18024279]
[1751678525786,0.37004219,2511.5,2511.4,4.53184279]
[1751678525987,0.37004219,2511.5,2511.4,6.18898004]
[1751678526390,0.37004219,2511.5,2511.4,5.63898004]
[1751678526886,0.37004219,2511.5,2511.4,12.01884279]
[1751678530109,0.37004219,2511.5,2511.4,3.98184279]
[1751678530593,0.37004219,2511.5,2511.4,3.98284279]
[1751678535608,0.37004219,2511.5,2511.4,4.18124279]
[1751678543014,0.8114,2511.6,2511.5,3.98168425]
[1751678543213,1.18089079,2511.6,2511.5,3.98168425]
[1751678543390,1.18089079,2511.6,2511.4,4.18116064]
[1751678543709,0.36949079,2511.5,2511.4,4.18116064]
[1751678547706,0.36949079,2511.5,2511.4,4.18124279]
[1751678549011,0.36949079,2511.5,2511.4,5.80411459]
[1751678550027,0.36949079,2511.5,2511.4,5.84393301]
[1751678551488,0.36949079,2511.5,2511.4,5.80411459]
[1751678556223,2.7377,2511.9,2511.6,3.98144775]
[1751678556395,0.37162634,2511.8,2511.6,12.01244775]
[1751678556597,0.37162634,2511.7,2511.6,12.01244775]
[1751678557112,0.37162634,2511.7,2511.6,12.21084775]
[1751678562348,1.18472634,2511.7,2511.4,0.001]
[1751678562500,2.46335735,2511.6,2511.4,8.2284]
[1751678562701,0.37162634,2511.5,2511.4,0.1994]
[1751678562901,0.37162634,2511.5,2511.4,0.001]
[1751678563129,1.19282634,2511.5,2511.4,0.001]
[1751678565813,1.19263465,2511.5,2511.4,0.001]
[1751678566402,3.14263465,2511.5,2511.4,0.001]
[1751678571244,3.14246313,2511.5,2511.4,0.001]
[1751678571740,3.14245801,2511.5,2511.4,0.001]
[1751678572942,3.14245801,2511.5,2511.4,3.98284279]
[1751678573240,2.32125801,2511.5,2511.4,5.8037193]
[1751678574615,2.32125801,2511.5,2511.4,4.18124279]
[1751678577674,2.32129917,2511.5,2511.4,4.18124279]
[1751678579774,2.32128328,2511.5,2511.4,4.18124279]
[1751678585553,0.37128328,2511.5,2511.4,4.18124279]
[1751678589662,0.37128328,2511.5,2511.4,12.21024279]
[1751678597069,1.95,2511.7,2511.5,3.98159967]
[1751678597256,0.37142019,2511.6,2511.5,3.98159967]
[1751678597663,0.37142531,2511.6,2511.5,3.98159967]
[1751678603179,6.781247,2511.6,2511.4,0.1994]
[1751678603378,1.18282531,2511.5,2511.4,0.001]
[1751678606282,1.18269097,2511.5,2511.4,0.001]
[1751678609295,1.18254487,2511.5,2511.4,0.001]
[1751678612082,1.18253771,2511.5,2511.4,0.001]
[1751678613390,1.18253771,2511.5,2511.4,3.98284279]
[1751678613564,2.32113771,2511.5,2511.4,3.98284279]
[1751678613763,0.37113771,2511.5,2511.4,4.18124279]
[1751678613984,0.37113771,2511.5,2511.4,5.07985937]
[1751678614988,1.95,2511.7,2511.6,3.98152572]
[1751678615292,2.32115875,2511.7,2511.6,3.98152572]
[1751678615589,2.32115875,2511.7,2511.6,4.17992572]
[1751678616892,0.37115875,2511.7,2511.6,4.17992572]
[1751678617191,2.32115875,2511.7,2511.6,4.17992572]
[1751678623794,2.32106965,2511.7,2511.6,4.17992572]
[1751678624790,0.37106965,2511.7,2511.6,4.17992572]
[1751678626802,1.949,2511.8,2511.7,3.9813672]
[1751678627001,2.31999626,2511.8,2511.7,3.9813672]
[1751678629778,2.31996845,2511.8,2511.7,3.9813672]
[1751678632473,2.31996845,2511.8,2511.7,4.88062617]
[1751678632474,0.37096845,2511.8,2511.7,4.88062617]
[1751678632680,0.37092422,2511.8,2511.7,12.90762617]
[1751678640032,1.949,2512.1,2512.0,3.98089171]
[1751678640229,1.949,2512.1,2512.0,12.00689171]
[1751678640436,2.31977105,2512.1,2512.0,12.20529171]
[1751678640733,2.31977118,2512.1,2512.0,12.20529171]
[1751678642234,2.31975066,2512.1,2512.0,12.20529171]
[1751678644838,2.31975066,2512.1,2512.0,4.17929171]
[1751678645130,2.31975066,2512.1,2512.0,12.20529171]
[1751678655153,0.37075066,2512.1,2512.0,13.82392583]
[1751678655338,0.37075066,2512.1,2512.0,14.37392583]
[1751678655633,0.002,2512.2,2512.1,4.53073325]
[1751678655803,1e-08,2512.3,2512.2,14.78577479]
[1751678655999,0.02,2512.5,2512.4,5.33545792]
[1751678656202,0.02,2512.5,2512.4,13.40026049]
[1751678656431,0.02,2512.5,2512.4,29.09849274]
[1751678657016,1e-08,2512.5,2512.4,29.09849274]
[1751678657415,1e-08,2512.5,2512.4,29.09749274]
[1751678657612,1e-08,2512.5,2512.4,30.7568204]
[1751678657839,1e-08,2512.5,2512.4,25.21718558]
[1751678662415,1e-08,2512.5,2512.4,25.21518558]
[1751678666236,1e-08,2512.5,2512.4,17.19318558]
[1751678666462,1e-08,2512.5,2512.4,25.21518558]
[1751678667584,1e-08,2512.5,2512.4,17.19318558]
[1751678668039,1e-08,2512.5,2512.4,25.21518558]
[1751678669735,1e-08,2512.5,2512.4,25.01678558]
[1751678670948,1e-08,2512.8,2512.7,14.5297827]
[1751678671154,1e-08,2512.8,2512.7,31.82877021]
[1751678671737,0.02,2513.3,2513.2,3.97899092]
[1751678671971,0.02,2513.3,2513.2,12.03978082]
[1751678672179,0.02,2513.3,2513.2,11.99999092]
[1751678675472,0.0155195,2513.4,2513.3,3.97883261]
[1751678679382,0.0155195,2513.4,2513.3,4.01862093]
[1751678679675,0.0155195,2513.4,2513.3,4.21702093]
[1751678681175,0.38461158,2513.4,2513.3,4.21702093]
[1751678682045,0.0155195,2513.4,2513.3,4.21702093]
[1751678682268,0.38461158,2513.4,2513.3,4.21702093]
[1751678682477,0.38461158,2513.4,2513.3,4.17723261]
[1751678691088,0.0155195,2513.4,2513.3,4.17723261]
[1751678691271,0.38624252,2513.4,2513.3,12.19523261]
[1751678691799,0.38624252,2513.4,2513.3,4.17723261]
[1751678691971,0.38624252,2513.4,2513.3,12.19523261]
[1751678692876,0.38624252,2513.4,2513.3,4.17723261]
[1751678693076,0.38624252,2513.4,2513.3,12.19523261]
[1751678694089,0.38632254,2513.4,2513.3,12.19523261]
[1751678695499,0.38832254,2513.4,2513.3,12.19523261]
[1751678700671,0.0175195,2513.4,2513.3,12.19523261]
[1751678701273,0.38884193,2513.4,2513.3,12.19523261]
[1751678701472,0.38884179,2513.4,2513.3,12.19523261]
[1751678703004,0.0175195,2513.4,2513.3,12.19523261]
[1751678703210,0.38886192,2513.4,2513.3,12.19523261]
[1751678704616,0.0175195,2513.4,2513.3,12.19523261]
[1751678705322,0.0175195,2513.4,2513.3,13.81265496]
[1751678707619,0.3889491,2513.4,2513.3,13.81265496]
[1751678708619,0.0175195,2513.4,2513.3,13.81265496]
[1751678708812,0.38898822,2513.4,2513.3,13.81265496]
[1751678709017,0.38898822,2513.4,2513.3,5.79465496]
[1751678709319,0.38898822,2513.4,2513.3,13.81165496]
[1751678709923,0.38898822,2513.4,2513.3,5.79465496]
[1751678710123,0.38898822,2513.4,2513.3,13.81165496]
[1751678717593,0.38902419,2513.4,2513.3,13.81165496]
[1751678718125,0.38902419,2513.4,2513.3,5.79465496]
[1751678718330,0.38902419,2513.4,2513.3,13.81165496]
[1751678720603,0.38902419,2513.4,2513.3,13.81065496]
[1751678732252,0.38902419,2513.4,2513.3,15.19255496]
[1751678732547,0.38902419,2513.4,2513.3,30.72559756]
[1751678734356,0.002,2513.7,2513.6,3.97835773]
[1751678734642,0.002,2513.7,2513.6,25.32721006]
[1751678734845,0.0435195,2513.9,2513.8,5.35994121]
[1751678735034,0.0435195,2513.9,2513.8,13.37494121]
[1751678735257,0.0435195,2513.9,2513.8,18.90798381]
[1751678735421,0.0435195,2513.9,2513.8,19.10638381]
[1751678735627,0.0435195,2513.9,2513.8,22.31226339]
[1751678735834,0.0435195,2513.9,2513.8,16.77922079]
[1751678736728,1e-08,2514.0,2513.9,4.80978297]
[1751678737225,1e-08,2514.0,2513.9,12.96187264]
[1751678737423,1e-08,2514.0,2513.9,22.96187264]
[1751678737622,1e-08,2514.0,2513.9,23.86113161]
[1751678739333,1e-08,2514.0,2513.9,16.25904194]
[1751678739534,1e-08,2514.0,2513.9,4.87714194]
[1751678739735,1e-08,2514.0,2513.8,12.12232079]
[1751678739736,1e-08,2514.0,2513.8,4.1763627]
[1751678739948,1e-08,2514.0,2513.9,8.014]
[1751678744252,1e-08,2514.0,2513.8,4.17643913]
[1751678744456,1e-08,2514.0,2513.9,8.014]
[1751678746261,0.37027802,2514.0,2513.9,8.014]
[1751678749088,0.37027802,2514.0,2513.8,0.1984]
[1751678749240,0.37027802,2514.0,2513.4,3.97863691]
[1751678749241,5.13196098,2513.9,2513.4,3.97863691]
[1751678749446,0.7838,2513.7,2513.6,0.1984]
[1751678749663,1.15407801,2513.7,2513.6,8.2124]
[1751678749967,1.15407801,2513.7,2513.6,0.1984]
[1751678749968,1.15413306,2513.7,2513.6,0.1984]
[1751678751776,1.15413306,2513.7,2513.6,4.17675773]
[1751678751942,1.15413306,2513.7,2513.6,0.1984]
[1751678752436,1.15413306,2513.7,2513.6,4.17675773]
[1751678752642,1.15413306,2513.7,2513.6,0.1984]
[1751678753053,0.37033306,2513.7,2513.6,4.17675773]
[1751678753272,0.37033306,2513.7,2513.6,0.1984]
[1751678753766,0.37033306,2513.7,2513.6,4.17675773]
[1751678757946,0.37033306,2513.7,2513.6,5.83336679]
[1751678760852,0.37033306,2513.7,2513.6,5.79358322]
[1751678761053,0.37033306,2513.7,2513.6,7.10098322]
[1751678761381,0.37033306,2513.9,2513.8,3.97804121]
[1751678761670,0.37050584,2513.9,2513.8,11.99604121]
[1751678761876,0.37050584,2513.9,2513.8,14.04912559]
[1751678762881,1e-08,2514.0,2513.9,3.97788297]
[1751678763178,0.3705391,2514.0,2513.9,3.97788297]
[1751678765883,0.3705391,2514.0,2513.9,4.01766179]
[1751678766471,1e-08,2514.0,2513.9,4.52788297]
[1751678766676,0.37055878,2514.0,2513.9,6.38558383]
[1751678768073,1e-08,2514.0,2513.9,6.38558383]
[1751678768275,0.37060736,2514.0,2513.9,6.38558383]
[1751678768584,1e-08,2514.0,2513.9,6.38558383]
[1751678770882,1e-08,2514.0,2513.9,17.13938383]
[1751678771756,1e-08,2514.0,2513.9,24.7414735]
[1751678771955,0.37086725,2514.0,2513.9,24.7414735]
[1751678773766,1e-08,2514.0,2513.9,24.7414735]
[1751678774184,1e-08,2514.0,2513.9,17.13938383]
[1751678776459,1e-08,2514.0,2513.9,15.15338383]
[1751678777387,1e-08,2514.0,2513.9,25.15338383]
[1751678777685,1e-08,2514.0,2513.9,17.13938383]
[1751678777856,1e-08,2514.0,2513.9,14.39958383]
[1751678778985,1e-08,2514.0,2513.9,5.83558383]
[1751678779290,1e-08,2514.0,2513.9,13.85158383]
[1751678779874,1e-08,2514.0,2513.9,3.97788297]
[1751678780090,1e-08,2514.0,2513.9,11.99388297]
[1751678780297,1e-08,2514.0,2513.8,4.17636586]
[1751678780590,0.7923,2513.9,2513.8,4.1764129]
[1751678780780,0.7923,2513.9,2513.8,12.1934129]
[1751678782288,0.7923,2513.9,2513.8,4.1764129]
[1751678782489,0.7923,2513.9,2513.8,12.1934129]
[1751678783071,0.7923,2513.9,2513.8,12.1924129]
[1751678783962,1.16290534,2513.9,2513.8,12.1924129]
[1751678787798,1e-08,2514.0,2513.9,3.97788297]
[1751678788589,0.37100401,2514.0,2513.9,3.97788297]
[1751678795005,0.37100401,2514.0,2513.9,3.97888297]
[1751678800325,0.37100401,2514.0,2513.9,6.35541256]
[1751678801310,0.37100401,2514.0,2513.9,6.94519138]
[1751678802089,1e-08,2514.0,2513.9,6.94519138]
[1751678802792,0.37101899,2514.0,2513.9,6.94519138]
[1751678803392,0.37101899,2514.0,2513.9,6.90541256]
[1751678809306,0.37101899,2514.0,2513.9,14.91841256]
[1751678815529,0.37101899,2514.0,2513.9,5.59601256]
[1751678815712,1.13601899,2514.0,2513.9,0.001]
[1751678815897,1.13601899,2514.0,2513.9,11.99188297]
[1751678816608,1.13601899,2514.0,2513.9,3.97888297]
[1751678816806,1.13601899,2514.0,2513.9,11.99188297]
[1751678817219,1.13599968,2514.0,2513.9,11.99188297]
[1751678817599,1.13599968,2514.0,2513.9,0.001]
[1751678817800,1.13599968,2514.0,2513.9,11.99088297]
[1751678820421,1.13599968,2514.0,2513.9,3.97888297]
[1751678820627,1.13599968,2514.0,2513.9,11.99188297]
[1751678822114,1.13599968,2514.0,2513.9,3.97888297]
[1751678822322,1.13599968,2514.0,2513.9,11.99188297]
[1751678822721,1.13599968,2514.0,2513.9,0.001]
[1751678822901,0.37099968,2514.0,2513.9,11.99188297]
[1751678823222,0.37099968,2514.0,2513.9,3.97888297]
[1751678823390,0.37099968,2514.0,2513.9,11.99188297]
[1751678829848,1.16079968,2514.0,2513.9,8.014]
[1751678830440,1.16079968,2514.0,2513.9,11.99188297]
[1751678830837,1.16080856,2514.0,2513.9,11.99188297]
[1751678832341,1.16080856,2514.0,2513.9,8.014]
[1751678832953,1.16080856,2514.0,2513.9,11.99188297]
[1751678834251,1.16080856,2514.0,2513.9,3.97888297]
[1751678834544,1.16080856,2514.0,2513.9,11.99188297]
[1751678836157,0.37100856,2514.0,2513.9,11.99188297]
[1751678842370,0.37100856,2514.0,2513.9,12.19028297]
[1751678845053,0.37100856,2514.0,2513.9,13.80711377]
[1751678845364,0.37100856,2514.0,2513.9,14.58891377]
[1751678850714,1e-08,2514.0,2513.9,15.13891377]
[1751678850876,0.0635195,2514.4,2514.3,3.97725012]
[1751678851076,0.0635195,2514.4,2514.3,12.78062262]
[1751678851405,0.0635195,2514.4,2514.3,14.61505093]
[1751678860291,0.0635195,2514.4,2514.3,24.96665093]
[1751678864699,1e-08,2514.4,2514.3,24.96665093]
[1751678866314,1e-08,2514.7,2514.6,14.79847563]
[1751678866494,1e-08,2514.7,2514.6,26.13972336]
[1751678868684,1e-08,2514.7,2514.6,18.12872336]
[1751678868883,1e-08,2514.7,2514.6,26.13972336]
[1751678870218,1e-08,2514.7,2514.6,26.33812336]
[1751678870385,1e-08,2514.7,2514.6,26.06542336]
[1751678884927,1e-08,2514.7,2514.6,18.05542336]
[1751678885223,1e-08,2514.7,2514.6,26.06442336]
[1751678886423,0.01551951,2514.9,2514.8,3.97645936]
[1751678886598,0.01551951,2514.9,2514.8,11.98545936]
[1751678886794,0.01551951,2514.9,2514.8,12.18385936]
[1751678887691,0.01551951,2514.9,2514.8,4.17485936]
[1751678887893,0.01551951,2514.9,2514.8,12.18385936]
[1751678889325,0.38624881,2514.9,2514.8,12.18385936]
[1751678890009,0.38624881,2514.9,2514.8,4.17485936]
[1751678890618,0.38624881,2514.9,2514.8,12.18385936]
[1751678893425,0.38624881,2514.9,2514.8,4.17485936]
[1751678893602,1.18464881,2514.9,2514.8,11.98545936]
[1751678896732,1.18494595,2514.9,2514.8,11.98545936]
[1751678897138,1.18694595,2514.9,2514.8,11.98545936]
[1751678898213,0.38854595,2514.9,2514.8,11.98545936]
[1751678898410,0.38854595,2514.9,2514.8,12.18385936]
[1751678902735,0.38854595,2514.9,2514.8,8.009]
[1751678903950,0.38854595,2514.9,2514.7,0.1984]
[1751678904156,1.20062644,2514.8,2514.7,0.1984]
[1751678904358,1.20062644,2514.8,2514.7,8.009]
[1751678904359,0.37102644,2514.8,2514.7,8.009]
[1751678904818,0.37102644,2514.8,2514.5,0.001]
[1751678904819,3.97663946,2514.7,2514.5,0.001]
[1751678905023,1.20062644,2514.6,2514.5,0.001]
[1751678905223,1.20062644,2514.6,2514.5,8.01]
[1751678906369,1.73818304,2514.6,2514.5,0.001]
[1751678906535,5.71495867,2514.6,2514.5,0.001]
[1751678912652,15.71495867,2514.6,2514.5,0.001]
[1751678914234,23.72595867,2514.6,2514.5,0.001]
[1751678918968,23.93331946,2514.6,2514.5,0.001]
[1751678921749,23.93135533,2514.6,2514.5,0.001]
[1751678924081,15.92035533,2514.6,2514.5,0.001]
[1751678929562,15.92069938,2514.6,2514.5,0.001]
[1751678933464,15.92144172,2514.6,2514.5,0.001]
[1751678936713,15.92196402,2514.6,2514.5,0.001]
[1751678939103,11.94518839,2514.6,2514.5,0.001]
[1751678939311,13.35163179,2514.6,2514.5,0.001]
[1751678939494,13.35179899,2514.6,2514.5,0.001]
[1751678941318,12.52219899,2514.6,2514.5,0.001]
[1751678944401,12.15136079,2514.6,2514.5,0.001]
[1751678944598,12.52236319,2514.6,2514.5,0.001]
[1751678945836,16.49913882,2514.6,2514.5,0.001]
[1751678946122,19.4266717,2514.6,2514.5,0.001]
[1751678947705,15.44989607,2514.6,2514.5,0.001]
[1751678948642,19.4266717,2514.6,2514.5,0.001]
[1751678952654,15.44989607,2514.6,2514.5,0.001]
[1751678953455,19.4266717,2514.6,2514.5,0.001]
[1751678953853,24.9566683,2514.6,2514.5,0.001]
[1751678957236,20.97989267,2514.6,2514.5,0.001]
[1751678957546,24.9566683,2514.6,2514.5,0.001]
[1751678959738,20.97989267,2514.6,2514.5,0.001]
[1751678964076,15.44989607,2514.6,2514.5,0.001]
[1751678965347,15.44994524,2514.6,2514.5,0.001]
[1751678968384,15.44997964,2514.6,2514.5,0.001]
[1751678968679,12.52244676,2514.6,2514.5,0.001]
[1751678974294,12.5225187,2514.6,2514.5,0.001]
[1751678978589,16.49929433,2514.6,2514.5,0.001]
[1751678979576,17.32129433,2514.6,2514.5,0.001]
[1751678986083,17.32133331,2514.6,2514.5,0.001]
[1751678986312,20.80522935,2514.6,2514.5,0.001]
[1751678993711,16.82845372,2514.6,2514.5,0.001]
[1751678994021,13.34455768,2514.6,2514.5,0.001]
[1751678994515,1.68470434,2514.4,2514.3,0.001]
[1751678994718,2.25430123,2514.4,2514.3,0.001]
[1751679000495,16.23139318,2514.4,2514.3,0.001]
[1751679001521,16.98229318,2514.4,2514.3,0.001]
[1751679001822,20.64735423,2514.4,2514.3,0.001]
[1751679002420,3.97772474,2514.0,2513.9,0.001]
[1751679002626,16.49032163,2514.0,2513.9,0.001]